bitfinex-derivatives/quotes_BTCF0:USTF0_20241023
["timestamp","ask_amount","ask_price","bid_price","bid_amount"]
[1729651495444,0.20938211,67196.0,67195.0,0.51493374]
[1729651495445,0.16956,67196.0,67195.0,0.51493374]
[1729651496553,0.16956,67196.0,67195.0,0.51486357]
[1729651497243,0.1326,67202.0,67195.0,0.56530357]
[1729651497445,0.192154,67202.0,67201.0,0.3608]
[1729651497647,0.302154,67202.0,67201.0,0.420355]
[1729651498151,0.302154,67202.0,67201.0,0.49474769]
[1729651498348,0.302154,67202.0,67201.0,0.420355]
[1729651498651,0.302154,67202.0,67201.0,0.49474769]
[1729651498846,0.302154,67202.0,67201.0,0.420355]
[1729651499552,0.302154,67202.0,67201.0,0.49474769]
[1729651499750,0.302154,67202.0,67201.0,0.58915567]
[1729651499938,0.302154,67202.0,67201.0,0.49474769]
[1729651500346,0.302154,67202.0,67201.0,0.58919239]
[1729651500558,0.302154,67202.0,67201.0,0.58919987]
[1729651500743,0.302154,67202.0,67201.0,0.58925883]
[1729651500944,0.302154,67202.0,67201.0,0.51485878]
[1729651501141,0.302154,67202.0,67201.0,0.58925838]
[1729651501452,0.302154,67202.0,67201.0,0.51485878]
[1729651501649,0.302154,67202.0,67201.0,0.58926145]
[1729651501944,0.302154,67202.0,67201.0,0.58926052]
[1729651502346,0.302154,67202.0,67201.0,0.51485878]
[1729651502547,0.302154,67202.0,67201.0,0.58926381]
[1729651502939,0.302154,67202.0,67201.0,0.5892647]
[1729651503144,0.302154,67202.0,67201.0,0.58926464]
[1729651503553,0.44101565,67202.0,67201.0,0.420355]
[1729651503744,0.44101565,67202.0,67201.0,0.3608]
[1729651503942,0.55101565,67202.0,67201.0,0.3608]
[1729651504655,0.69935476,67202.0,67201.0,0.3608]
[1729651504849,0.44095761,67202.0,67201.0,0.3608]
[1729651505242,0.91175761,67202.0,67188.0,0.3608]
[1729651505548,0.059565,67191.0,67190.0,0.059565]
[1729651505751,0.21583287,67191.0,67190.0,0.059565]
[1729651505952,0.255683,67191.0,67190.0,0.059565]
[1729651508447,0.059566,67189.0,67188.0,0.36156]
[1729651508751,0.059567,67188.0,67187.0,0.00223249]
[1729651509057,0.3081084,67188.0,67187.0,0.00223249]
[1729651509258,0.30681679,67188.0,67187.0,0.00223249]
[1729651509651,0.41681679,67188.0,67187.0,0.00223249]
[1729651509855,0.05957,67184.0,67183.0,0.02618253]
[1729651510156,0.059576,67179.0,67177.0,0.059576]
[1729651510355,0.31962996,67178.0,67177.0,0.059576]
[1729651510543,0.234476,67178.0,67177.0,0.15512999]
[1729651510745,0.234476,67178.0,67177.0,0.09555399]
[1729651512163,0.3608,67180.0,67179.0,0.059575]
[1729651512366,0.11,67181.0,67180.0,0.059574]
[1729651512568,0.11,67181.0,67180.0,0.15502693]
[1729651513856,0.11,67181.0,67180.0,0.15479373]
[1729651514167,0.11,67181.0,67180.0,0.22911011]
[1729651514647,0.11,67181.0,67180.0,0.13389038]
[1729651514851,0.11,67181.0,67180.0,0.2291876]
[1729651515057,0.11,67181.0,67180.0,0.059574]
[1729651515264,0.11,67181.0,67180.0,0.13389038]
[1729651515464,0.11,67181.0,67180.0,0.059574]
[1729651516363,0.059571,67184.0,67179.0,0.07431638]
[1729651516664,0.3608,67189.0,67183.0,0.05943193]
[1729651516862,0.4708,67189.0,67188.0,0.10413647]
[1729651517162,0.4708,67189.0,67188.0,0.059567]
[1729651517365,0.00088,67194.0,67188.0,0.16942656]
[1729651517569,0.11,67194.0,67193.0,0.059562]
[1729651517863,0.11,67194.0,67192.0,0.05941922]
[1729651517864,0.3608,67196.0,67191.0,0.11]
[1729651518055,0.3608,67196.0,67185.0,0.38711281]
[1729651518056,0.3608,67196.0,67195.0,0.1189771]
[1729651518258,0.3608,67196.0,67195.0,0.05956]
[1729651519365,0.3608,67196.0,67189.0,0.13661638]
[1729651519366,0.11,67197.0,67194.0,0.05941227]
[1729651519568,0.059556,67200.0,67194.0,0.11897327]
[1729651519569,0.11,67195.0,67194.0,0.11897327]
[1729651519764,0.11,67195.0,67194.0,0.059561]
[1729651523064,0.11,67195.0,67194.0,0.08617953]
[1729651525565,0.11,67195.0,67194.0,0.18053323]
[1729651526677,0.067,67207.0,67194.0,0.12097223]
[1729651526874,0.11,67205.0,67201.0,0.169555]
[1729651527476,0.11,67203.0,67201.0,0.169555]
[1729651527973,0.169551,67206.0,67201.0,0.169555]
[1729651528274,0.11,67203.0,67201.0,0.169555]
[1729651529277,0.11,67203.0,67201.0,0.059555]
[1729651530382,0.059558,67198.0,67197.0,0.0742483]
[1729651530681,0.059559,67197.0,67196.0,0.05956]
[1729651531774,0.169559,67197.0,67196.0,0.05956]
[1729651532974,0.059559,67197.0,67196.0,0.05956]
[1729651534176,0.059559,67197.0,67195.0,0.0742483]
[1729651534177,0.11,67198.0,67197.0,0.059559]
[1729651535773,0.279558,67198.0,67197.0,0.059559]
[1729651535980,0.05956,67195.0,67194.0,0.4358083]
[1729651536281,0.16956,67195.0,67194.0,0.42018948]
[1729651536484,0.16956,67195.0,67194.0,0.05938948]
[1729651536683,0.16956,67195.0,67192.0,0.05938948]
[1729651536684,0.059562,67194.0,67192.0,0.05938948]
[1729651536877,0.11,67193.0,67192.0,0.05938948]
[1729651538178,0.11,67193.0,67191.0,0.11895348]
[1729651538381,0.169563,67193.0,67191.0,0.11895348]
[1729651539277,0.059563,67192.0,67191.0,0.11895348]
[1729651539585,0.059567,67188.0,67187.0,0.00223227]
[1729651540085,0.059567,67188.0,67187.0,0.06163053]
[1729651540490,0.059567,67188.0,67187.0,0.00223227]
[1729651545179,0.059567,67188.0,67187.0,0.06180027]
[1729651546185,0.059567,67188.0,67187.0,0.00223227]
[1729651546586,0.125567,67188.0,67187.0,0.00223227]
[1729651548587,0.125567,67188.0,67187.0,0.06164229]
[1729651549095,0.235567,67188.0,67187.0,0.00223227]
[1729651549390,0.682087,67188.0,67185.0,0.05944616]
[1729651549588,0.059576,67178.0,67177.0,0.4350483]
[1729651549786,0.169576,67178.0,67177.0,0.3608]
[1729651550291,0.5808,67178.0,67176.0,0.1338253]
[1729651550484,0.46232,67177.0,67164.0,0.059588]
[1729651550687,0.4708,67165.0,67164.0,0.059588]
[1729651552382,0.5308,67165.0,67164.0,0.059588]
[1729651559494,0.17,67165.0,67164.0,0.059588]
[1729651559692,0.5308,67165.0,67164.0,0.059588]
[1729651560802,0.590387,67165.0,67164.0,0.059588]
[1729651565006,0.3608,67165.0,67164.0,0.229588]
[1729651566597,0.3608,67172.0,67171.0,0.059582]
[1729651567992,0.3608,67172.0,67171.0,0.194482]
[1729651569195,0.2584,67172.0,67171.0,0.194482]
[1729651569493,0.2584,67172.0,67171.0,0.28781926]
[1729651571301,0.2584,67172.0,67171.0,0.31474674]
[1729651574411,0.3684,67172.0,67171.0,0.31474674]
[1729651577505,0.3684,67172.0,67171.0,0.40411171]
[1729651578602,0.3684,67172.0,67171.0,0.31474674]
[1729651579700,0.3608,67180.0,67179.0,0.059575]
[1729651579903,0.3608,67187.0,67186.0,0.059568]
[1729651580108,0.169564,67192.0,67189.0,0.059566]
[1729651580311,0.059564,67192.0,67190.0,0.059564]
[1729651580505,0.3608,67197.0,67189.0,0.11]
[1729651580708,0.3608,67197.0,67196.0,0.05956]
[1729651581607,0.4708,67197.0,67196.0,0.05956]
[1729651582402,0.5308,67197.0,67196.0,0.05956]
[1729651584509,0.17,67197.0,67196.0,0.05956]
[1729651584705,0.5308,67197.0,67196.0,0.05956]
[1729651585901,0.5308,67197.0,67188.0,0.10126076]
[1729651586102,0.059561,67195.0,67193.0,0.059562]
[1729651586302,0.17,67194.0,67193.0,0.059562]
[1729651587417,0.229561,67194.0,67193.0,0.059562]
[1729651588018,0.17,67194.0,67188.0,0.08653105]
[1729651588215,0.17,67189.0,67188.0,0.059566]
[1729651588818,0.17,67189.0,67188.0,0.08704133]
[1729651593017,0.3608,67194.0,67188.0,0.08704133]
[1729651593311,0.17,67192.0,67191.0,0.059564]
[1729651601423,0.17,67192.0,67191.0,0.13375681]
[1729651602411,0.11,67192.0,67191.0,0.13375681]
[1729651603328,0.11,67192.0,67191.0,0.2261623]
[1729651603619,0.11,67192.0,67191.0,0.22617298]
[1729651604327,0.11,67192.0,67191.0,0.15198017]
[1729651607321,0.11,67192.0,67191.0,0.24101154]
[1729651608227,0.11,67192.0,67191.0,0.059564]
[1729651616130,0.11,67192.0,67191.0,0.26262929]
[1729651618125,0.11,67192.0,67191.0,0.26261585]
[1729651621534,0.11,67192.0,67191.0,0.26306388]
[1729651624240,0.3608,67194.0,67193.0,0.059562]
[1729651624429,0.157788,67209.0,67204.0,0.059553]
[1729651624626,0.11,67206.0,67205.0,0.059551]
[1729651624932,0.11,67206.0,67205.0,0.15239016]
[1729651625328,0.11,67209.0,67205.0,0.20283916]
[1729651625527,0.11,67212.0,67208.0,0.11]
[1729651625729,0.420344,67214.0,67210.0,0.07441915]
[1729651625921,0.11,67211.0,67210.0,0.13396615]
[1729651626126,0.11,67211.0,67210.0,0.22624775]
[1729651626523,0.11,67211.0,67210.0,0.1518286]
[1729651626830,0.11,67211.0,67210.0,0.22622663]
[1729651627133,0.11,67213.0,67210.0,0.16667963]
[1729651627326,0.11,67213.0,67212.0,0.059545]
[1729651627629,0.11,67211.0,67210.0,0.13393388]
[1729651628040,0.1104,67211.0,67210.0,0.059547]
[1729651628631,0.169946,67211.0,67210.0,0.059547]
[1729651631135,0.21274075,67211.0,67210.0,0.059547]
[1729651635541,0.169946,67211.0,67210.0,0.059547]
[1729651636836,0.21267203,67211.0,67210.0,0.059547]
[1729651637139,0.169946,67211.0,67210.0,0.059547]
[1729651637940,0.21254739,67211.0,67210.0,0.059547]
[1729651638237,0.169946,67211.0,67210.0,0.11899813]
[1729651638432,0.169946,67211.0,67210.0,0.11895641]
[1729651638627,0.169946,67211.0,67210.0,0.1189559]
[1729651639036,0.169946,67211.0,67210.0,0.059547]
[1729651640840,0.169946,67211.0,67210.0,0.11895493]
[1729651641042,0.169946,67211.0,67210.0,0.059547]
[1729651642552,0.169946,67211.0,67210.0,0.11895896]
[1729651643244,0.169946,67211.0,67210.0,0.059547]
[1729651643636,0.169946,67211.0,67210.0,0.11896075]
[1729651643831,0.169946,67211.0,67210.0,0.059547]
[1729651644041,0.169946,67211.0,67210.0,0.11896075]
[1729651644438,0.0004,67211.0,67210.0,0.059547]
[1729651644648,0.1104,67211.0,67210.0,0.059547]
[1729651644850,0.0004,67211.0,67210.0,0.169547]
[1729651645642,0.0004,67211.0,67210.0,0.059547]
[1729651646246,0.1104,67211.0,67210.0,0.059547]
[1729651649550,0.1104,67211.0,67210.0,0.13393388]
[1729651649750,0.1104,67211.0,67210.0,0.22600294]
[1729651651248,0.0004,67211.0,67210.0,0.33600294]
[1729651651445,0.0004,67211.0,67210.0,0.26161606]
[1729651652141,0.0004,67211.0,67210.0,0.169547]
[1729651652747,0.0004,67211.0,67210.0,0.26169189]
[1729651653048,0.0004,67211.0,67210.0,0.37122516]
[1729651653350,0.0004,67211.0,67210.0,0.26169189]
[1729651654138,0.1724,67224.0,67210.0,0.37169189]
[1729651654340,0.059533,67226.0,67223.0,0.11]
[1729651654659,0.059533,67226.0,67222.0,0.059537]
[1729651654660,0.11,67225.0,67222.0,0.059537]
[1729651654840,0.0004,67223.0,67222.0,0.059537]
[1729651657055,0.15071026,67223.0,67222.0,0.059537]
[1729651658056,0.15071026,67223.0,67222.0,0.08671499]
[1729651658250,0.0004,67223.0,67222.0,0.08671499]
[1729651659259,0.1104,67223.0,67222.0,0.08671499]
[1729651660164,0.0004,67223.0,67222.0,0.08671499]
[1729651661261,0.0004,67227.0,67226.0,0.059533]
[1729651661562,0.0004,67227.0,67226.0,0.530333]
[1729651664361,0.0004,67227.0,67226.0,0.169533]
[1729651664556,0.0004,67227.0,67226.0,0.530333]
[1729651668354,0.09494258,67227.0,67226.0,0.530333]
[1729651673557,0.09494258,67227.0,67226.0,0.640333]
[1729651674063,0.09494258,67227.0,67226.0,0.530333]
[1729651674254,0.09494258,67227.0,67226.0,0.640333]
[1729651676065,0.0008,67233.0,67226.0,0.640333]
[1729651676269,0.0008,67233.0,67232.0,0.169528]
[1729651676953,0.0008,67233.0,67232.0,0.530328]
[1729651678261,0.0008,67233.0,67232.0,0.57484837]
[1729651678462,0.0008,67233.0,67232.0,0.58972985]
[1729651678870,0.0008,67233.0,67232.0,0.58970018]
[1729651679562,0.0008,67233.0,67232.0,0.58971976]
[1729651679769,0.0008,67233.0,67232.0,0.530328]
[1729651680965,0.0008,67233.0,67232.0,0.602428]
[1729651681466,0.0008,67233.0,67232.0,0.76815276]
[1729651681859,0.0004,67238.0,67232.0,0.76815276]
[1729651681860,0.0004,67238.0,67232.0,0.74431219]
[1729651682060,0.0008,67239.0,67238.0,0.169522]
[1729651683257,0.05810355,67239.0,67238.0,0.05039736]
[1729651683464,0.05810355,67239.0,67238.0,0.11]
[1729651684167,0.05114149,67239.0,67238.0,0.169522]
[1729651684468,0.05677832,67239.0,67238.0,0.169522]
[1729651684765,0.0008,67239.0,67238.0,0.169522]
[1729651685070,0.10593781,67239.0,67238.0,0.169522]
[1729651686269,0.09229205,67239.0,67238.0,0.169522]
[1729651686469,0.14827037,67239.0,67238.0,0.169522]
[1729651687760,0.14827037,67239.0,67238.0,0.530322]
[1729651690870,0.14827037,67239.0,67238.0,0.420322]
[1729651691374,0.0008,67239.0,67238.0,0.420322]
[1729651694970,0.0008,67239.0,67238.0,0.530322]
[1729651696671,0.0012,67241.0,67238.0,0.62536723]
[1729651696866,0.0012,67241.0,67240.0,0.10408823]
[1729651697067,0.0012,67241.0,67240.0,0.059521]
[1729651698373,0.0012,67241.0,67239.0,0.05943226]
[1729651698374,0.25587271,67241.0,67238.0,0.52197027]
[1729651698579,0.14857974,67240.0,67238.0,0.52121027]
[1729651698779,0.1636893,67241.0,67238.0,0.58073227]
[1729651698780,0.14897974,67239.0,67238.0,0.58073227]
[1729651703480,0.1897038,67239.0,67238.0,0.58073227]
[1729651703683,0.14507873,67239.0,67238.0,0.58073227]
[1729651705985,0.29289858,67239.0,67238.0,0.58073227]
[1729651706479,0.0012,67241.0,67238.0,0.68843355]
[1729651706680,0.0012,67241.0,67240.0,0.059521]
[1729651712275,0.0008,67243.0,67240.0,0.08586198]
[1729651712474,0.0004,67254.0,67251.0,0.059511]
[1729651712686,0.0004,67254.0,67251.0,0.530311]
[1729651714291,0.1104,67254.0,67251.0,0.530311]
[1729651714995,0.0004,67254.0,67251.0,0.530311]
[1729651717492,0.0004,67254.0,67251.0,0.55647317]
[1729651719398,0.0004,67254.0,67251.0,0.44647317]
[1729651720093,0.11,67253.0,67251.0,0.44647317]
[1729651721380,0.21234561,67252.0,67251.0,0.16359606]
[1729651722390,0.21236035,67252.0,67251.0,0.22310706]
[1729651723194,0.27187035,67252.0,67251.0,0.22310706]
[1729651723592,0.21236035,67252.0,67251.0,0.22310706]
[1729651724496,0.40503475,67252.0,67251.0,0.22310706]
[1729651725689,0.40471055,67252.0,67251.0,0.22310706]
[1729651726386,0.059516,67246.0,67245.0,0.059516]
[1729651726697,0.38187635,67246.0,67245.0,0.059516]
[1729651727087,0.37239165,67246.0,67245.0,0.059516]
[1729651727998,0.37239165,67246.0,67245.0,0.02880456]
[1729651728389,0.169916,67246.0,67242.0,0.38717037]
[1729651728596,0.1104,67243.0,67242.0,0.44668937]
[1729651740005,0.1104,67243.0,67242.0,0.420319]
[1729651740206,0.640718,67243.0,67240.0,0.05952]
[1729651740396,0.530718,67243.0,67241.0,0.05952]
[1729651740709,0.0004,67241.0,67240.0,0.059521]
[1729651740909,0.1108,67241.0,67240.0,0.059521]
[1729651741399,0.0008,67241.0,67240.0,0.059521]
[1729651743405,0.09006298,67241.0,67236.0,0.3608]
[1729651743611,0.09006298,67241.0,67238.0,0.11]
[1729651743612,0.13389446,67240.0,67238.0,0.11]
[1729651743810,0.13389446,67239.0,67238.0,0.169522]
[1729651744201,0.08307222,67239.0,67238.0,0.169522]
[1729651744396,0.13389446,67239.0,67238.0,0.169522]
[1729651746410,0.18625989,67239.0,67238.0,0.279522]
[1729651746603,0.18625989,67239.0,67238.0,0.169522]
[1729651746604,0.1862705,67239.0,67238.0,0.169522]
[1729651746802,0.28172423,67239.0,67238.0,0.169522]
[1729651748112,0.28172423,67239.0,67238.0,0.279522]
[1729651748314,0.13389446,67239.0,67238.0,0.279522]
[1729651749404,0.0008,67241.0,67238.0,0.279522]
[1729651749608,0.13147296,67240.0,67239.0,0.059522]
[1729651751610,0.0008,67241.0,67240.0,0.059521]
[1729651751800,0.0008,67241.0,67240.0,0.22246173]
[1729651752005,0.0008,67241.0,67240.0,0.31165387]
[1729651752309,0.0008,67241.0,67240.0,0.22246173]
[1729651752608,0.0008,67241.0,67240.0,0.33686907]
[1729651752808,0.0008,67241.0,67240.0,0.22246173]
[1729651753323,0.0008,67241.0,67240.0,0.15556173]
[1729651753906,0.0008,67241.0,67240.0,0.26556173]
[1729651756524,0.0008,67241.0,67240.0,0.26573615]
[1729651758613,0.08261451,67241.0,67240.0,0.169521]
[1729651759018,0.08261428,67241.0,67240.0,0.169521]
[1729651761720,0.08261428,67241.0,67240.0,0.059521]
[1729651762116,0.08261428,67241.0,67240.0,0.169521]
[1729651763620,0.08279408,67241.0,67240.0,0.169521]
[1729651763819,0.08279408,67241.0,67240.0,0.530321]
[1729651764220,0.08279408,67241.0,67240.0,0.169521]
[1729651766528,0.0008,67241.0,67240.0,0.26559759]
[1729651768826,0.0008,67241.0,67240.0,0.62639759]
[1729651769623,0.0008,67241.0,67240.0,0.26559759]
[1729651769824,0.0008,67241.0,67240.0,0.62639759]
[1729651770826,0.0008,67241.0,67240.0,0.15559759]
[1729651771226,0.0008,67241.0,67240.0,0.22995407]
[1729651771431,0.0008,67241.0,67240.0,0.23028258]
[1729651771934,0.0008,67241.0,67240.0,0.23028218]
[1729651772127,0.0008,67241.0,67240.0,0.13388758]
[1729651772322,0.0008,67241.0,67240.0,0.059521]
[1729651772523,0.0008,67241.0,67240.0,0.13388758]
[1729651772724,0.0008,67241.0,67240.0,0.059521]
[1729651773328,0.0008,67241.0,67240.0,0.13388758]
[1729651773526,0.03840254,67241.0,67236.0,0.09808]
[1729651773733,0.0004,67237.0,67236.0,0.157604]
[1729651773932,0.03800254,67237.0,67236.0,0.157604]
[1729651774130,0.13137494,67237.0,67236.0,0.157604]
[1729651776730,0.13137494,67237.0,67236.0,0.059524]
[1729651776930,0.18935708,67237.0,67236.0,0.059524]
[1729651777139,0.13137494,67237.0,67236.0,0.059524]
[1729651777429,0.13137494,67237.0,67232.0,0.420327]
[1729651777638,0.1104,67233.0,67232.0,0.420327]
[1729651777830,0.14800254,67233.0,67232.0,0.420327]
[1729651778027,0.23901738,67233.0,67232.0,0.420327]
[1729651778537,0.1104,67233.0,67232.0,0.420327]
[1729651778927,0.1104,67233.0,67232.0,0.44723631]
[1729651779138,0.0004,67233.0,67232.0,0.44723631]
[1729651779544,0.02499981,67218.0,67199.0,0.3608]
[1729651779838,0.11,67201.0,67200.0,0.0701]
[1729651780036,0.3608,67209.0,67200.0,0.1801]
[1729651780228,0.4708,67209.0,67205.0,0.059551]
[1729651780429,0.11,67206.0,67200.0,0.0701]
[1729651780630,0.11,67201.0,67200.0,0.0701]
[1729651780932,0.4708,67201.0,67200.0,0.0701]
[1729651788440,0.3608,67201.0,67200.0,0.129656]
[1729651789844,0.4708,67201.0,67200.0,0.129656]
[1729651797334,0.4708,67201.0,67200.0,0.17396581]
[1729651797538,0.4708,67201.0,67200.0,0.129656]
[1729651798342,0.4708,67201.0,67200.0,0.17396581]
[1729651798646,0.4708,67201.0,67200.0,0.17397674]
[1729651799147,0.4708,67201.0,67200.0,0.17397625]
[1729651799343,0.4708,67201.0,67200.0,0.129656]
[1729651801356,0.3608,67201.0,67200.0,0.129656]
[1729651801650,0.4708,67201.0,67200.0,0.1888512]
[1729651801866,0.4708,67201.0,67200.0,0.129656]
[1729651802160,0.4708,67201.0,67200.0,0.1888512]
[1729651802450,0.4708,67201.0,67200.0,0.129656]
[1729651804355,0.4708,67201.0,67200.0,0.2995046]
[1729651804743,0.4708,67201.0,67200.0,0.20370907]
[1729651805055,0.4708,67201.0,67200.0,0.22552213]
[1729651805251,0.4708,67201.0,67200.0,0.2995755]
[1729651805458,0.4708,67201.0,67200.0,0.22552213]
[1729651806344,0.4708,67201.0,67200.0,0.31431493]
[1729651806859,0.4708,67201.0,67200.0,0.31454656]
[1729651807454,0.4708,67201.0,67200.0,0.34010966]
[1729651808049,0.4708,67201.0,67200.0,0.16596613]
[1729651808250,0.5808,67201.0,67200.0,0.28089891]
[1729651808453,0.4708,67201.0,67200.0,0.28089891]
[1729651809952,0.4708,67201.0,67200.0,0.34045491]
[1729651813661,0.4708,67201.0,67200.0,0.34040242]
[1729651817556,0.4708,67201.0,67200.0,0.27030242]
[1729651817757,0.640355,67201.0,67200.0,0.21069963]
[1729651818054,0.059561,67194.0,67193.0,0.0299]
[1729651818255,0.640361,67194.0,67193.0,0.0299]
[1729651818460,0.640361,67194.0,67193.0,0.10430787]
[1729651819257,0.640361,67194.0,67193.0,0.0299]
[1729651819957,0.530361,67194.0,67193.0,0.0299]
[1729651820259,1.086841,67194.0,67193.0,0.0299]
[1729651820450,1.086841,67194.0,67190.0,0.05947661]
[1729651820654,0.059562,67193.0,67192.0,0.04460726]
[1729651820863,0.059569,67185.0,67184.0,0.00223272]
[1729651821162,0.530369,67185.0,67184.0,0.00223272]
[1729651821668,0.530369,67185.0,67169.0,0.1004]
[1729651821669,0.059576,67177.0,67176.0,0.059577]
[1729651821960,0.530376,67177.0,67176.0,0.059577]
[1729651822350,0.4708,67177.0,67176.0,0.059577]
[1729651846480,0.11,67177.0,67176.0,0.059577]
[1729651846681,0.4708,67177.0,67176.0,0.059577]
[1729651851882,0.4708,67177.0,67176.0,0.26609147]
[1729651852284,0.11,67177.0,67176.0,0.26609147]
[1729651852488,0.4708,67177.0,67176.0,0.26609147]
[1729651853487,0.11,67177.0,67176.0,0.26609147]
[1729651853788,0.4708,67177.0,67176.0,0.26609147]
[1729651854286,0.11,67177.0,67176.0,0.26609147]
[1729651854687,0.4708,67177.0,67176.0,0.26609147]
[1729651856292,0.11,67177.0,67176.0,0.26609147]
[1729651856687,0.4708,67177.0,67176.0,0.26609147]
[1729651857581,0.3608,67177.0,67176.0,0.26609147]
[1729651857784,0.3608,67177.0,67176.0,0.37609147]
[1729651860683,0.11,67180.0,67179.0,0.059575]
[1729651860886,0.3608,67182.0,67181.0,0.059573]
[1729651861193,0.3608,67182.0,67181.0,0.26622184]
[1729651863277,0.3608,67182.0,67181.0,0.26596245]
[1729651863687,0.3608,67182.0,67181.0,0.26585653]
[1729651863896,0.3608,67182.0,67181.0,0.15368209]
[1729651865697,0.3608,67182.0,67181.0,0.26500466]
[1729651866200,0.3608,67182.0,67181.0,0.1756743]
[1729651866694,0.3608,67182.0,67181.0,0.26500063]
[1729651866994,0.3608,67182.0,67181.0,0.1756743]
[1729651867193,0.3608,67182.0,67181.0,0.2649972]
[1729651868884,0.3608,67182.0,67181.0,0.1756743]
[1729651870989,0.3608,67182.0,67181.0,0.2649972]
[1729651871190,0.3608,67182.0,67181.0,0.1756743]
[1729651872089,0.3608,67182.0,67181.0,0.2649972]
[1729651872397,0.3608,67182.0,67181.0,0.1756743]
[1729651873289,0.3608,67182.0,67181.0,0.37718915]
[1729651873490,0.3608,67182.0,67181.0,0.28786625]
[1729651873798,0.3608,67182.0,67181.0,0.09411708]
[1729651873799,0.420372,67182.0,67181.0,0.09411708]
[1729651874194,0.420372,67182.0,67181.0,0.07443931]
[1729651874394,0.059573,67181.0,67180.0,0.07443931]
[1729651874597,0.241573,67181.0,67180.0,0.16880007]
[1729651875301,0.241573,67181.0,67180.0,0.07443931]
[1729651875691,0.351573,67181.0,67180.0,0.07443931]
[1729651876001,0.798133,67181.0,67176.0,0.07443975]
[1729651876203,0.5808,67177.0,67172.0,0.07443975]
[1729651876497,0.5808,67177.0,67170.0,0.07443975]
[1729651876498,0.059582,67171.0,67170.0,0.07443975]
[1729651876711,0.059582,67171.0,67170.0,0.16932856]
[1729651876712,0.169582,67171.0,67170.0,0.16932856]
[1729651876914,0.169582,67171.0,67170.0,0.07443975]
[1729651877401,0.059583,67170.0,67169.0,0.07443975]
[1729651877596,0.169583,67170.0,67169.0,0.07443975]
[1729651877803,0.169583,67170.0,67169.0,0.16934489]
[1729651878302,0.169583,67170.0,67165.0,0.1489085]
[1729651878303,0.059584,67169.0,67168.0,0.07443975]
[1729651878494,0.530384,67169.0,67168.0,0.16928951]
[1729651879402,0.059584,67168.0,67167.0,0.07443975]
[1729651879701,0.169584,67168.0,67167.0,0.07443975]
[1729651880090,0.169584,67168.0,67166.0,0.07443975]
[1729651880293,0.059585,67167.0,67166.0,0.07443975]
[1729651880497,0.059586,67166.0,67165.0,0.07443975]
[1729651880692,0.169586,67166.0,67165.0,0.16926529]
[1729651881198,0.059589,67163.0,67162.0,0.07667279]
[1729651881389,0.530389,67163.0,67162.0,0.07667279]
[1729651881594,0.530389,67163.0,67162.0,0.17145201]
[1729651882203,0.530389,67163.0,67162.0,0.07667279]
[1729651882400,0.530389,67163.0,67162.0,0.00223304]
[1729651884294,0.640389,67163.0,67162.0,0.00223304]
[1729651884702,0.530389,67163.0,67162.0,0.00223304]
[1729651885909,0.750389,67163.0,67156.0,0.07443975]
[1729651886092,0.420394,67157.0,67154.0,0.04455631]
[1729651886297,0.059597,67154.0,67153.0,0.04455631]
[1729651886514,0.4708,67154.0,67151.0,0.04455631]
[1729651886712,0.11,67152.0,67150.0,0.04455631]
[1729651886897,0.1696,67151.0,67150.0,0.04455631]
[1729651888102,0.1696,67151.0,67149.0,0.10415731]
[1729651888692,0.3608,67150.0,67149.0,0.10415731]
[1729651889307,0.3608,67150.0,67149.0,0.059601]
[1729651890107,0.3608,67150.0,67149.0,0.169601]
[1729651890314,0.0769,67167.0,67161.0,0.059591]
[1729651890315,0.42039,67162.0,67161.0,0.059591]
[1729651890606,0.53039,67162.0,67161.0,0.059591]
[1729651900405,0.059591,67161.0,67160.0,0.04446692]
[1729651900606,0.94252,67162.0,67156.0,0.04446692]
[1729651900811,0.11,67157.0,67154.0,0.04446692]
[1729651901017,0.4708,67155.0,67154.0,0.04446692]
[1729651901213,0.059599,67152.0,67151.0,0.059599]
[1729651901520,0.169599,67152.0,67151.0,0.059599]
[1729651903307,0.11,67152.0,67147.0,0.0721]
[1729651903622,0.1696,67151.0,67150.0,0.0596]
[1729651903803,0.3608,67155.0,67150.0,0.11]
[1729651904002,0.059593,67158.0,67157.0,0.059594]
[1729651904308,0.3608,67161.0,67160.0,0.059592]
[1729651904506,0.420391,67161.0,67160.0,0.059592]
[1729651905309,0.530391,67161.0,67160.0,0.059592]
[1729651906515,0.420391,67161.0,67160.0,0.059592]
[1729651906939,0.17,67162.0,67160.0,0.059592]
[1729651906940,0.3608,67168.0,67160.0,0.17]
[1729651907217,0.3608,67168.0,67164.0,0.059587]
[1729651907218,0.059588,67165.0,67164.0,0.059587]
[1729651910914,0.059588,67165.0,67160.0,0.07443975]
[1729651911116,0.5308,67161.0,67156.0,0.07443975]
[1729651911414,0.059597,67155.0,67154.0,0.059597]
[1729651911614,0.229597,67155.0,67154.0,0.059597]
[1729651913317,0.229597,67155.0,67154.0,0.13403675]
[1729651913716,0.229597,67155.0,67154.0,0.22921144]
[1729651913919,0.420387,67165.0,67163.0,0.059588]
[1729651914118,0.420387,67165.0,67151.0,0.136499]
[1729651914119,0.420387,67165.0,67164.0,0.0767]
[1729651914506,0.420387,67165.0,67164.0,0.136288]
[1729651914710,0.590387,67165.0,67164.0,0.136288]
[1729651919616,0.590387,67165.0,67164.0,0.16910145]
[1729651919822,0.5308,67165.0,67160.0,0.13398518]
[1729651920020,0.17,67161.0,67160.0,0.13398518]
[1729651920321,0.17,67161.0,67160.0,0.059591]
[1729651921419,0.229591,67161.0,67160.0,0.059591]
[1729651921946,0.229591,67161.0,67160.0,0.13398518]
[1729651922122,0.229591,67161.0,67160.0,0.059591]
[1729651922322,0.229591,67161.0,67160.0,0.13398518]
[1729651922512,0.229591,67161.0,67160.0,0.059591]
[1729651923223,0.059592,67159.0,67158.0,0.07439418]
[1729651923417,0.420392,67159.0,67158.0,0.07443122]